fUSD/lending_fUSD_20260112
["ID","MTS","AMOUNT","RATE_DAILY","PERIOD"]
[401477828,1768255845610,-150.0,0.00017429,2]
[401477829,1768255845620,-150.0,0.00017434,2]
[401477830,1768255845630,-150.0,0.00017435,2]
[401477831,1768255845639,-170.46857894,0.00017436,2]
[401477832,1768255845649,-150.0,0.00017441,2]
[401477833,1768255845659,-150.0,0.0001745,2]
[401477834,1768255845668,-150.87,0.00017452,2]
[401477835,1768255845682,-150.0,0.0001746,2]
[401477836,1768255845693,-150.0,0.00017464,2]
[401477837,1768255845702,-150.0,0.00017471,2]
[401477838,1768255845712,-150.0,0.00017472,2]
[401477839,1768255845722,-150.0,0.00017473,2]
[401477840,1768255845732,-150.0,0.00017486,2]
[401477841,1768255845741,-150.0,0.00017486,2]
[401477842,1768255845750,-150.0,0.00017496,2]
[401477843,1768255845760,-150.0,0.000175,2]
[401477844,1768255845769,-150.0,0.00017502,2]
[401477845,1768255845779,-150.0,0.00017503,2]
[401477846,1768255845789,-150.0,0.00017506,2]
[401477847,1768255845799,-1000.0,0.00017517,2]
[401477848,1768255845809,-150.0,0.00017517,2]
[401477849,1768255845819,-150.0,0.0001752,2]
[401477850,1768255845829,-6157.84376205,0.00017531,2]
[401477851,1768255845841,-150.0,0.00017532,2]
[401477852,1768255845858,-166.66,0.00017534,2]
[401477853,1768255845868,-150.0,0.00017534,2]
[401477854,1768255845880,-150.0,0.00017537,2]
[401477855,1768255845901,-150.0,0.0001754,2]
[401477856,1768255845911,-150.0,0.00017541,2]
[401477857,1768255845920,-244.0,0.00017542,2]
[401477858,1768255845930,-150.0,0.0001755,2]
[401477859,1768255845940,-150.0,0.0001755,2]
[401477860,1768255845950,-150.0,0.00017561,2]
[401477861,1768255845959,-150.0,0.00017566,2]
[401477862,1768255845969,-150.0,0.00017568,2]
[401477863,1768255845978,-244.0,0.00017576,2]
[401477864,1768255845988,-150.0,0.00017576,2]
[401477865,1768255845998,-150.0,0.00017579,2]
[401477866,1768255846008,-150.0,0.00017589,2]
[401477867,1768255846017,-10188.61640951,0.00017591,2]
[401477868,1768255846027,-2941.05537889,0.00017591,2]
[401477869,1768255846037,-158.91779718,0.00017595,2]
[401477870,1768255846047,-150.0,0.00017597,2]
[401477871,1768255846056,-150.0,0.000176,2]
[401477872,1768255846066,-244.0,0.00017603,2]
[401477873,1768255846076,-150.0,0.00017604,2]
[401477874,1768255846086,-150.0,0.00017605,2]
[401477875,1768255846098,-150.0,0.00017612,2]
[401477876,1768255846107,-150.0,0.00017617,2]
[401477877,1768255846117,-500.0,0.00017621,2]
[401477878,1768255846128,-987.57806594,0.00017621,2]
[401477879,1768255846139,-500.0,0.00017621,2]
[401477880,1768255846148,-166.96227274,0.00017621,2]
[401477881,1768255846158,-1031.96318574,0.00017621,2]
[401477882,1768255846168,-1010.77976475,0.00017621,2]
[401477883,1768255846179,-500.0,0.00017621,2]
[401477884,1768255846189,-540.4577012,0.00017621,2]
[401477885,1768255846198,-500.0,0.00017621,2]
[401477887,1768255846208,-1000.95743752,0.00017621,2]
[401477888,1768255846218,-1000.70457439,0.00017621,2]
[401477889,1768255846228,-503.84192068,0.00017621,2]
[401477890,1768255846237,-1000.0,0.00017621,2]
[401477891,1768255846248,-500.0,0.00017621,2]
[401477892,1768255846258,-800.28905191,0.00017621,2]
[401477894,1768255846267,-1031.53854137,0.00017621,2]
[401477895,1768255846277,-1000.0,0.00017621,2]
[401477896,1768255846286,-1000.0,0.00017621,2]
[401477897,1768255846297,-237.74478366,0.00017621,2]
[401477898,1768255846307,-1000.0,0.00017621,2]
[401477899,1768255846317,-500.38035534,0.00017621,2]
[401477900,1768255846329,-1000.0,0.00017621,2]
[401477901,1768255846339,-1000.0,0.00017621,2]
[401477902,1768255846349,-1000.0,0.00017621,2]
[401477903,1768255846359,-500.0,0.00017621,2]
[401477904,1768255846369,-500.84213941,0.00017621,2]
[401477905,1768255846379,-500.0,0.00017621,2]
[401477906,1768255846389,-500.0,0.00017621,2]
[401477907,1768255846400,-1000.0,0.00017621,2]
[401477908,1768255846409,-611.47912123,0.00017621,2]
[401477909,1768255846419,-150.0,0.00017628,2]
[401477910,1768255846429,-244.0,0.00017637,2]
[401477911,1768255846438,-150.0,0.0001764,2]
[401477912,1768255846448,-150.0,0.0001764,2]
[401477913,1768255846458,-150.0,0.0001764,2]
[401477914,1768255846467,-150.0,0.0001764,2]
[401477915,1768255846477,-6206.09984302,0.0001764,2]
[401477916,1768255846487,-553.64373807,0.00017647,2]
[401477917,1768255846497,-150.0,0.00017647,2]
[401477918,1768255846507,-150.0,0.00017649,2]
[401477919,1768255846517,-150.0,0.0001765,2]
[401477920,1768255846527,-244.0,0.00017651,2]
[401477921,1768255846538,-150.0,0.00017655,2]
[401477922,1768255846549,-150.0,0.00017659,2]
[401477923,1768255846559,-150.0,0.00017676,2]
[401477924,1768255846569,-834.0,0.0001768,2]
[401477925,1768255846578,-150.0,0.00017682,2]
[401477926,1768255846588,-150.0,0.0001769,2]
[401477927,1768255846598,-244.0,0.0001769,2]
[401477928,1768255846608,-150.0,0.00017691,2]
[401477929,1768255846617,-150.0,0.00017693,2]
[401477930,1768255846627,-150.0,0.00017694,2]
[401477931,1768255846637,-150.0,0.000177,2]
[401477932,1768255846646,-150.0,0.000177,2]
[401477933,1768255846656,-1113.62,0.00017707,2]
[401477934,1768255846665,-556.81,0.00017707,2]
[401477935,1768255846675,-556.81,0.00017707,2]
[401477936,1768255846684,-150.0,0.00017712,2]
[401477937,1768255846694,-150.0,0.00017718,2]
[401477938,1768255846703,-150.0,0.00017721,2]
[401477939,1768255846712,-208.38,0.00017722,2]
[401477940,1768255846722,-343.06,0.00017722,2]
[401477941,1768255846731,-166.37,0.00017722,2]
[401477942,1768255846740,-150.0,0.00017722,2]
[401477943,1768255846749,-179.28,0.00017722,2]
[401477944,1768255846759,-150.0,0.00017722,2]
[401477945,1768255846769,-150.0,0.00017722,2]
[401477946,1768255846779,-357.96,0.00017722,2]
[401477947,1768255846790,-150.0,0.00017722,2]
[401477948,1768255846801,-179.28,0.00017722,2]
[401477949,1768255846811,-150.0,0.00017722,2]
[401477950,1768255846821,-179.28,0.00017722,2]
[401477951,1768255846832,-179.28,0.00017722,2]
[401477952,1768255846842,-179.28,0.00017722,2]
[401477953,1768255846852,-150.0,0.00017722,2]
[401477954,1768255846861,-467.15,0.00017722,2]
[401477955,1768255846871,-179.28,0.00017722,2]
[401477956,1768255846880,-150.0,0.00017722,2]
[401477957,1768255846890,-934.3,0.00017722,2]
[401477958,1768255846899,-467.15,0.00017722,2]
[401477959,1768255846910,-179.28,0.00017722,2]
[401477960,1768255846919,-467.15,0.00017722,2]
[401477961,1768255846929,-150.0,0.00017722,2]
[401477962,1768255846939,-556.81,0.00017722,2]
[401477963,1768255846948,-467.15,0.00017722,2]
[401477964,1768255846958,-179.28,0.00017722,2]
[401477965,1768255846968,-556.81,0.00017722,2]
[401477966,1768255846977,-150.0,0.00017722,2]
[401477967,1768255846987,-467.15,0.00017722,2]
[401477968,1768255846996,-556.81,0.00017722,2]
[401477969,1768255847006,-179.28,0.00017722,2]
[401477970,1768255847015,-467.15,0.00017722,2]
[401477971,1768255847025,-150.0,0.00017722,2]
[401477972,1768255847035,-467.15,0.00017722,2]
[401477973,1768255847045,-179.28,0.00017722,2]
[401477974,1768255847055,-467.15,0.00017722,2]
[401477975,1768255847064,-179.28,0.00017722,2]
[401477976,1768255847074,-467.15,0.00017722,2]
[401477977,1768255847083,-467.15,0.00017722,2]
[401477978,1768255847093,-467.15,0.00017722,2]
[401477979,1768255847103,-1111.35,0.00017722,2]
[401477980,1768255847113,-934.3,0.00017722,2]
[401477981,1768255847123,-934.3,0.00017722,2]
[401477982,1768255847133,-556.81,0.00017722,2]
[401477983,1768255847142,-934.2,0.00017722,2]
[401477984,1768255847152,-467.15,0.00017722,2]
[401477985,1768255847164,-244.0,0.00017728,2]
[401477986,1768255847174,-150.0,0.00017732,2]
[401477987,1768255847184,-150.0,0.00017737,2]
[401477988,1768255847194,-150.0,0.00017743,2]
[401477989,1768255847204,-150.0,0.00017743,2]
[401477990,1768255847217,-150.0,0.00017748,2]
[401477991,1768255847227,-150.0,0.0001775,2]
[401477992,1768255847239,-150.0,0.00017752,2]
[401477993,1768255847249,-150.0,0.00017753,2]
[401477994,1768255847260,-150.0,0.0001776,2]
[401477995,1768255847275,-244.0,0.00017762,2]
[401477996,1768255847284,-150.0,0.0001777,2]
[401477997,1768255847294,-150.0,0.0001778,2]
[401477998,1768255847304,-150.0,0.00017783,2]
[401477999,1768255847314,-150.0,0.00017784,2]
[401478000,1768255847325,-150.0,0.00017788,2]
[401478001,1768255847336,-150.0,0.00017794,2]
[401478002,1768255847345,-2000.0,0.000178,2]
[401478003,1768255847356,-1000.0,0.000178,2]
[401478004,1768255847365,-150.0,0.000178,2]
[401478005,1768255847375,-156.587,0.00017807,2]
[401478006,1768255847384,-174.30171844,0.00017808,2]
[401478007,1768255847394,-150.0,0.00017809,2]
[401478008,1768255847406,-150.0,0.00017814,2]
[401478009,1768255847416,-150.0,0.0001782,2]
[401478010,1768255847427,-150.0,0.00017824,2]
[401478011,1768255847439,-150.0,0.00017824,2]
[401478012,1768255847450,-150.0,0.00017845,2]
[401478013,1768255847459,-150.0,0.00017846,2]
[401478014,1768255847468,-150.0,0.00017847,2]
[401478015,1768255847478,-150.0,0.0001785,2]
[401478016,1768255847487,-150.0,0.0001785,2]
[401478017,1768255847497,-244.0,0.00017852,2]
[401478018,1768255847507,-150.0,0.00017856,2]
[401478019,1768255847516,-200.0,0.00017856,2]
[401478020,1768255847526,-182.09,0.00017858,2]
[401478021,1768255847536,-150.0,0.00017859,2]
[401478022,1768255847546,-1000.0,0.00017865,2]
[401478023,1768255847555,-150.0,0.00017868,2]
[401478024,1768255847565,-150.0,0.00017876,2]
[401478025,1768255847574,-244.0,0.00017878,2]
[401478026,1768255847584,-150.0,0.0001788,2]
[401478027,1768255847593,-25000.0,0.00017882,3]
[401478028,1768255847603,-150.0,0.00017885,2]
[401478029,1768255847612,-25000.0,0.00017891,3]
[401478030,1768255847623,-150.0,0.00017892,2]
[401478031,1768255847633,-150.0,0.00017894,2]
[401478032,1768255847642,-150.0,0.00017897,2]
[401478033,1768255847652,-500.0,0.00017899,2]
[401478034,1768255847661,-25000.0,0.000179,3]
[401478035,1768255847671,-10000.0,0.000179,2]
[401478036,1768255847680,-5800.0,0.000179,2]
[401478037,1768255847690,-170.46857894,0.000179,2]
[401478038,1768255847699,-19055.73497805,0.000179,3]
[401478039,1768255847708,-150.0,0.000179,2]
[401478040,1768255847717,-2418.02016053,0.000179,2]
[401478041,1768255847727,-2418.02016053,0.000179,2]
[401478042,1768255847736,-2418.02016053,0.000179,2]
[401478043,1768255847745,-2418.02016053,0.000179,2]
[401478044,1768255847755,-2418.02016053,0.000179,2]
[401478045,1768255847764,-10188.61640951,0.000179,2]
[401478046,1768255847773,-2418.02016053,0.000179,2]
[401478047,1768255847783,-2418.02016053,0.000179,2]
[401478048,1768255847794,-2941.05537889,0.000179,2]
[401478049,1768255847804,-150.0,0.000179,2]
[401478050,1768255847813,-913.79152893,0.000179,2]
[401478051,1768255847823,-5058.0,0.000179,2]
[401478052,1768255847833,-150.0,0.00017907,2]
[401478053,1768255847843,-158.11,0.00017912,2]
[401478054,1768255847935,-150.0,0.00017912,2]
[401478055,1768255847944,-150.0,0.00017923,2]
[401478056,1768255847954,-150.0,0.00017928,2]
[401478057,1768255847963,-150.0,0.00017929,2]
[401478058,1768255847973,-244.0,0.0001793,2]
[401478059,1768255847983,-150.0,0.00017938,2]
[401478060,1768255847992,-150.0,0.00017949,2]
[401478061,1768255848008,-150.0,0.0001795,2]
[401478062,1768255848026,-150.0,0.00017956,2]
[401478063,1768255848036,-244.0,0.0001796,2]
[401478064,1768255848045,-150.0,0.00017962,2]
[401478065,1768255848055,-150.0,0.00017964,2]
[401478066,1768255848064,-150.0,0.00017965,2]
[401478067,1768255848073,-1000.0,0.00017965,2]
[401478068,1768255848083,-150.0,0.00017969,2]
[401478069,1768255848093,-500.0,0.00017973,2]
[401478070,1768255848103,-500.0,0.00017973,2]
[401478071,1768255848112,-642.03010417,0.00017973,2]
[401478072,1768255848122,-150.0,0.00017973,2]
[401478073,1768255848131,-500.0,0.00017973,2]
[401478074,1768255848141,-460.80722915,0.00017973,2]
[401478075,1768255848150,-500.0,0.00017973,2]
[401478076,1768255848160,-150.34167383,0.00017973,2]
[401478077,1768255848170,-500.0,0.00017973,2]
[401478078,1768255848180,-500.0,0.00017973,2]
[401478079,1768255848190,-162.85500377,0.00017973,2]
[401478080,1768255848199,-500.0,0.00017973,2]
[401478081,1768255848209,-500.0,0.00017973,2]
[401478082,1768255848219,-500.0,0.00017973,2]
[401478083,1768255848228,-501.2767774,0.00017973,2]
[401478084,1768255848238,-500.0,0.00017973,2]
[401478085,1768255848248,-500.0,0.00017973,2]
[401478086,1768255848257,-500.0,0.00017973,2]
[401478087,1768255848267,-610.36957715,0.00017973,2]
[401478088,1768255848276,-500.0,0.00017973,2]
[401478089,1768255848286,-500.0,0.00017973,2]
[401478090,1768255848296,-902.39549897,0.00017973,2]
[401478091,1768255848306,-500.0,0.00017973,2]
[401478092,1768255848315,-500.0,0.00017973,2]
[401478093,1768255848326,-515.69548792,0.00017973,2]
[401478094,1768255848337,-191.10319937,0.00017973,2]
[401478095,1768255848347,-500.0,0.00017973,2]
[401478096,1768255848356,-500.0,0.00017973,2]
[401478097,1768255848366,-500.0,0.00017973,2]
[401478098,1768255848375,-500.0,0.00017973,2]
[401478099,1768255848384,-500.0,0.00017973,2]
[401478100,1768255848394,-500.0,0.00017973,2]
[401478101,1768255848404,-500.0,0.00017973,2]
[401478102,1768255848414,-273.6592917,0.00017973,2]
[401478103,1768255848423,-500.0,0.00017973,2]
[401478104,1768255848433,-500.0,0.00017973,2]
[401478105,1768255848442,-382.22994489,0.00017973,2]
[401478106,1768255848452,-500.0,0.00017973,2]
[401478107,1768255848462,-500.0,0.00017973,2]
[401478108,1768255848472,-500.0,0.00017973,2]
[401478109,1768255848482,-500.0,0.00017973,2]
[401478110,1768255848491,-500.0,0.00017973,2]
[401478111,1768255848501,-500.0,0.00017973,2]
[401478112,1768255848511,-500.0,0.00017973,2]
[401478113,1768255848521,-500.0,0.00017973,2]
[401478114,1768255848531,-500.0,0.00017973,2]
[401478115,1768255848540,-500.0,0.00017973,2]
[401478116,1768255848550,-500.0,0.00017973,2]
[401478117,1768255848559,-500.0,0.00017973,2]
[401478118,1768255848570,-500.0,0.00017973,2]
[401478119,1768255848579,-500.0,0.00017973,2]
[401478120,1768255848589,-500.0,0.00017973,2]
[401478121,1768255848598,-500.0,0.00017973,2]
[401478122,1768255848608,-500.0,0.00017973,2]
[401478123,1768255848617,-193.4694691,0.00017973,2]
[401478124,1768255848627,-500.0,0.00017982,2]
[401478125,1768255848636,-244.0,0.00017989,2]
[401478126,1768255848645,-209.06567652,0.0001799,2]
[401478127,1768255848655,-209.06567652,0.0001799,2]
[401478128,1768255848664,-500.0,0.00017998,2]
[401478129,1768255848673,-500.0,0.00017998,2]
[401478130,1768255848682,-500.0,0.00017998,2]
[401478131,1768255848691,-300.0,0.00017999,2]
[401478132,1768255848701,-249.76041872,0.00017999,2]
[401478133,1768255848710,-3427.6838734,0.00017999,2]
[401478134,1768255848719,-454542.9902809,0.00017999,2]
[401478135,1768255848728,-35704.555405,0.00017999,2]
[401478136,1768255848737,-3654.1326653,0.00017999,2]
[401478137,1768255848747,-5451.9131386,0.00017999,2]
[401478138,1768255848756,-115687.6833469,0.00017999,2]
[401478139,1768255848765,-300.0,0.00017999,2]
[401478140,1768255848774,-2621.2965257,0.00017999,2]
[401478141,1768255848784,-3197.1593606,0.00017999,2]
[401478142,1768255848794,-300.0,0.00017999,2]
[401478143,1768255848804,-500.0,0.00017999,2]
[401478144,1768255848814,-500.0,0.00017999,2]
[401478145,1768255848824,-500.0,0.00017999,2]
[401478146,1768255848833,-500.0,0.00017999,2]
[401478147,1768255848843,-500.0,0.00017999,2]
[401478148,1768255848852,-500.0,0.00017999,2]
[401478149,1768255848861,-500.0,0.00017999,2]
[401478150,1768255848871,-982.0484901,0.00017999,2]
[401478151,1768255848880,-327554.33702357,0.00018,2]
[401478152,1768255848889,-150.3925454,0.00018,2]
[401478153,1768255848898,-233.67648303,0.00018,2]
[401478154,1768255848908,-152.17395716,0.00018,2]
[401478155,1768255848916,-186.59365576,0.00018,2]
[401478156,1768255848925,-253.57964062,0.00018,2]
[401478157,1768255848935,-285.23983713,0.00018,2]
[401478158,1768255848944,-150.0,0.00018,2]
[401478159,1768255848954,-150.00000001,0.00018,2]
[401478160,1768255848963,-150.0,0.00018,2]
[401478161,1768255848973,-150.0,0.00018,2]
[401478162,1768255848983,-150.0,0.00018,2]
[401478163,1768255848992,-258.8757006,0.00018,2]
[401478164,1768255849001,-150.0,0.00018,2]
[401478165,1768255849011,-1793239.62500083,0.00018,2]
[401478166,1768255849021,-3321377.36161884,0.00018,2]
[401478167,1768255849796,-379.9949,0.00014738,2]
[401478168,1768255849806,-151.0,0.00016054,2]
[401478169,1768255849815,-31.22410657,0.00016054,2]
[401478170,1768255849833,-119.77589343,0.00016054,2]
[401478171,1768255849842,-767.37968037,0.00016738,2]
[401478172,1768255849882,-263.95605343,0.00016738,2]
[401478173,1768255849893,-325.58015431,0.00016738,2]
[401478174,1768255849904,-1141.83425038,0.00016738,2]
[401478175,1768255849915,-285.08955157,0.00016738,2]
[401478176,1768255849927,-3772.16030994,0.00016738,2]
[401478177,1768255849936,-337.9530488,0.00017048,2]
[401478178,1768255849945,-171.53,0.00017178,2]
[401478179,1768255849954,-179.28,0.00017722,2]
[401478180,1768255849963,-467.15,0.00017722,2]
[401478181,1768255849972,-267239.31556054,0.00018,2]
[401478182,1768255850070,-150.0,0.00017973,2]
[401478183,1768255850080,-122271.91356397,0.00018,2]
[401478184,1768255850091,-4805.23855489,0.00018,2]
[401478185,1768255850108,-15440.0,0.00018,2]
[401478186,1768255910255,-500.0,0.00014437,2]
[401478187,1768255910280,-500.0,0.00014437,2]
[401478188,1768255910307,-500.0,0.00014437,2]
[401478189,1768255910334,-500.0,0.00014437,2]
[401478190,1768255910364,-500.0,0.00014437,2]
[401478191,1768255910391,-500.0,0.00014437,2]
[401478192,1768255910417,-500.0,0.00014437,2]
[401478193,1768255910442,-500.0,0.00014437,2]
[401478194,1768255910467,-500.0,0.00014437,2]
[401478195,1768255910491,-500.0,0.00014437,2]
[401478196,1768255910516,-500.0,0.00014437,2]
[401478197,1768255910540,-500.0,0.00014437,2]
[401478198,1768255910564,-500.0,0.00014437,2]
[401478199,1768255910588,-375.24693046,0.00014437,2]
[401478200,1768255910611,-500.0,0.00014437,2]
[401478201,1768255910634,-500.0,0.00014437,2]
[401478202,1768255910657,-500.0,0.00014437,2]
[401478203,1768255910680,-500.0,0.00014437,2]
[401478204,1768255910703,-500.0,0.00014437,2]
[401478205,1768255910726,-500.0,0.00014437,2]
[401478206,1768255910746,-1500.0,0.00014551,2]
[401478207,1768255910769,-745624.75306954,0.00014712,2]
[401478226,1768257032046,-500.0,0.0001257,2]
[401478228,1768257032056,-600.0,0.00013827,2]
[401478230,1768257032065,-195.0,0.00013827,2]
[401478231,1768257032074,-300.0,0.00013827,2]
[401478232,1768257032084,-600.0,0.00014208,2]
[401478233,1768257032093,-442.9945363,0.00014208,2]
[401478234,1768257032103,-1200.0,0.00014436,2]
[401478235,1768257032113,-300.0,0.00014436,2]
[401478236,1768257032123,-300.0,0.00014436,2]
[401478237,1768257032132,-441.83384222,0.00014437,2]
[401478238,1768257032144,-734.91789651,0.00014437,2]
[401478239,1768257032166,-27.38119599,0.00014437,2]
[401478240,1768257032177,-805.848,0.00014437,2]
[401478241,1768257032201,-600.11131002,0.00014437,2]
[401478242,1768257032212,-19145.72775526,0.00014437,2]
[401478243,1768257032221,-1158.71,0.00014496,2]
[401478244,1768257032231,-481.26273874,0.00014511,2]
[401478245,1768257032239,-179.78001979,0.00014511,2]
[401478246,1768257032249,-150.0,0.00014511,2]
[401478247,1768257032258,-54276.40875246,0.00014512,2]
[401478248,1768257032270,-8108.35026846,0.00014512,2]
[401478249,1768257032281,-23906.36157696,0.00014512,2]
[401478251,1768257032292,-472.63809177,0.00014512,2]
[401478253,1768257032303,-4400.0939247,0.00014512,2]
[401478256,1768257032317,-1119.94014192,0.00014512,2]
[401478258,1768257032327,-702.53762416,0.00014512,2]
[401478286,1768257038160,-500.0,0.00014436,2]
[401478288,1768257038169,-197.97042102,0.00014436,2]
[401478295,1768257038218,-399.27923792,0.00014436,2]
[401478297,1768257038228,-90.72076208,0.00014511,2]
[401478299,1768257038240,-128.73598454,0.00014511,2]
[401478301,1768257038250,-173.90639874,0.00014512,2]
[401478305,1768257038275,-446.6694554,0.00014512,2]
[401478515,1768257040645,-271.0265,0.00014512,2]
[401478518,1768257040671,-6217.60000017,0.00014512,2]
[401478521,1768257040687,-899904.46726526,0.00014512,2]
[401478523,1768257040698,-3393.2867,0.00014612,2]
[401478525,1768257040707,-19935.4407,0.00014612,2]
[401478527,1768257040717,-321.9501,0.00014612,2]
[401478529,1768257040727,-152.06497503,0.00014638,2]
[401478531,1768257040737,-209.63270184,0.00014703,2]
[401478533,1768257040746,-500.0,0.00014711,2]
[401478535,1768257040755,-526.37134529,0.00014711,2]
[401478537,1768257040767,-500.0,0.00014711,2]
[401478539,1768257040776,-500.0,0.00014711,2]
[401478541,1768257040785,-1000.0,0.00014738,2]
[401478543,1768257040794,-481.26273871,0.00014995,2]
[401478545,1768257040803,-200.0,0.00015136,2]
[401478547,1768257040812,-4995.53,0.00015207,2]
[401478549,1768257040821,-500.0,0.00015224,2]
[401478551,1768257040831,-150.99,0.0001531,2]
[401478553,1768257040840,-9999.99,0.0001531,2]
[401478555,1768257040849,-746.01,0.0001531,2]
[401478557,1768257040859,-299.99,0.0001531,2]
[401478559,1768257040868,-499.99,0.0001531,2]
[401478561,1768257040877,-999.99,0.0001531,2]
[401478563,1768257040887,-1534.87,0.0001531,2]
[401478565,1768257040896,-4517.32,0.0001531,2]
[401478567,1768257040905,-229.44,0.00015354,2]
[401478569,1768257040914,-166.66,0.00015458,2]
[401478571,1768257040925,-481.26273871,0.00015479,2]
[401478573,1768257040934,-3240.0,0.00015578,2]
[401478574,1768257040943,-255.0,0.00015628,2]
[401478576,1768257040953,-166.66,0.00015783,2]
[401478579,1768257040963,-500.0,0.00015808,2]
[401478580,1768257040972,-420.0,0.00015809,2]
[401478582,1768257040981,-420.0,0.00015809,2]
[401478584,1768257040991,-1680.0,0.0001588,2]
[401478587,1768257041000,-1000.0,0.00015918,2]
[401478588,1768257041009,-481.26273871,0.00015963,2]
[401478590,1768257041018,-209.06567652,0.0001599,2]
[401478592,1768257041027,-9432.60016094,0.00016,2]
[401478594,1768257041037,-485284.47469497,0.00016,4]
[401478596,1768257041046,-150.0,0.00016072,2]
[401478599,1768257041055,-166.66,0.00016109,2]
[401478600,1768257041065,-150.0,0.000162,2]
[401478602,1768257041075,-150.0,0.000162,2]
[401478604,1768257041085,-150.0,0.000162,2]
[401478607,1768257041094,-150.0,0.000162,2]
[401478609,1768257041103,-150.0,0.000162,2]
[401478610,1768257041113,-150.0,0.000162,2]
[401478612,1768257041122,-150.0,0.000162,2]
[401478615,1768257041132,-150.0,0.000162,2]
[401478617,1768257041150,-150.0,0.000162,2]
[401478620,1768257041161,-150.0,0.000162,2]
[401478622,1768257041171,-150.0,0.000162,2]
[401478624,1768257041180,-150.0,0.000162,2]
[401478626,1768257041190,-150.0,0.000162,2]
[401478628,1768257041200,-150.0,0.000162,2]
[401478630,1768257041209,-150.0,0.000162,2]
[401478632,1768257041219,-150.0,0.000162,2]
[401478634,1768257041228,-500.0,0.00016202,2]
[401478636,1768257041237,-150.0,0.00016228,2]
[401478638,1768257041247,-150.0,0.00016233,2]
[401478640,1768257041256,-150.0,0.00016233,2]
[401478642,1768257041266,-150.0,0.00016235,2]
[401478644,1768257041275,-150.0,0.0001624,2]
[401478646,1768257041285,-150.0,0.00016245,2]
[401478648,1768257041294,-150.0,0.00016246,2]
[401478650,1768257041303,-150.0,0.00016256,2]
[401478652,1768257041313,-150.0,0.00016265,2]
[401478654,1768257041322,-150.0,0.00016267,2]
[401478656,1768257041332,-150.0,0.00016271,2]
[401478658,1768257041342,-150.0,0.0001628,2]
[401478660,1768257041353,-150.0,0.00016284,2]
[401478662,1768257041362,-150.0,0.0001629,2]
[401478664,1768257041372,-150.0,0.00016292,2]
[401478666,1768257041382,-150.0,0.00016298,2]
[401478668,1768257041391,-150.0,0.000163,2]
[401478670,1768257041401,-150.0,0.00016306,2]
[401478672,1768257041410,-150.0,0.00016306,2]
[401478674,1768257041420,-150.0,0.00016312,2]
[401478676,1768257041430,-150.0,0.0001632,2]
[401478678,1768257041439,-150.0,0.00016331,2]
[401478680,1768257041449,-150.0,0.00016333,2]
[401478682,1768257041459,-150.0,0.00016335,2]
[401478685,1768257041469,-150.0,0.00016338,2]
[401478687,1768257041479,-150.0,0.00016338,2]
[401478689,1768257041488,-150.0,0.00016341,2]
[401478691,1768257041498,-150.0,0.00016341,2]
[401478693,1768257041512,-171.53,0.00016356,2]
[401478695,1768257041523,-150.0,0.0001636,2]